[Event "Weekendtournooi Groningen & PK NOSBO"]
[Site "Groningen, Netherlands"]
[Date "2023.05.18"]
[Round "1.10"]
[White "Clemens, Adrian"]
[Black "Koes, Richard"]
[Result "1-0"]
[TimeControl "90min + 30sec/move"]
[WhiteTitle "FM"]
[WhiteElo "2060"]
[BlackElo "1809"]

1. d4 {[%clk 01:30:54]} {[%emt 00:00:04]} Nf6 {[%clk 01:31:17]} {[%emt
00:00:06]} 2. Nf3 {[%clk 01:30:28]} {[%emt 00:00:56]} b5 {[%clk 01:31:34]}
{[%emt 00:00:29]} 3. Bf4 {[%clk 01:28:10]} {[%emt 00:02:49]} Bb7 {[%clk
01:31:21]} {[%emt 00:00:42]} 4. e3 {[%clk 01:28:33]} {[%emt 00:00:03]} a6
{[%clk 01:31:35]} {[%emt 00:00:05]} 5. Nbd2 {[%clk 01:28:49]} {[%emt 00:00:14]}
e6 {[%clk 01:31:05]} {[%emt 00:01:30]} 6. Bd3 {[%clk 01:28:51]} d6 {[%clk
01:28:12]} {[%emt 00:03:33]} 7. O-O {[%clk 01:28:10]} {[%emt 00:00:58]} Nbd7
{[%clk 01:28:27]} {[%emt 00:00:16]} 8. h3 {[%clk 01:24:24]} {[%emt 00:04:16]}
Be7 {[%clk 01:28:20]} {[%emt 00:00:40]} 9. c3 {[%clk 01:22:29]} {[%emt
00:02:22]} c5 {[%clk 01:24:10]} {[%emt 00:04:47]} 10. a4 {[%clk 01:21:55]}
{[%emt 00:01:08]} bxa4 {[%clk 01:21:09]} {[%emt 00:03:40]} 11. Qxa4 {[%clk
01:16:39]} {[%emt 00:05:25]} O-O {[%clk 01:19:51]} {[%emt 00:02:10]} 12. Bh2
{[%clk 01:14:52]} {[%emt 00:01:55]} Nb6 {[%clk 01:17:40]} {[%emt 00:02:42]} 13.
Qa5 {[%clk 01:13:57]} {[%emt 00:01:25]} Nfd7 {[%clk 01:11:53]} {[%emt
00:06:17]} 14. Rfe1 {[%clk 01:09:13]} {[%emt 00:05:15]} Nb8 {[%clk 01:11:38]}
{[%emt 00:00:45]} 15. Qa2 {[%clk 01:04:33]} {[%emt 00:05:11]} N8d7 {[%clk
01:06:27]} {[%emt 00:05:40]} 16. Qb1 {[%clk 00:59:18]} {[%emt 00:05:45]} h6
{[%clk 01:00:58]} {[%emt 00:05:58]} 17. Qd1 {[%clk 00:55:19]} {[%emt 00:04:30]}
Nf6 {[%clk 00:55:05]} {[%emt 00:06:24]} 18. e4 {[%clk 00:53:08]} {[%emt
00:02:54]} Nh7 {[%clk 00:53:12]} {[%emt 00:02:07]} 19. Qe2 {[%clk 00:50:03]}
{[%emt 00:03:36]} a5 {[%clk 00:50:46]} {[%emt 00:02:59]} 20. dxc5 {[%clk
00:40:52]} {[%emt 00:09:46]} dxc5 {[%clk 00:50:38]} {[%emt 00:00:29]} 21. Red1
{[%clk 00:40:57]} {[%emt 00:00:35]} Qc8 {[%clk 00:46:45]} {[%emt 00:04:14]} 22.
Ne5 {[%clk 00:38:10]} {[%emt 00:03:16]} Bd6 {[%clk 00:41:23]} {[%emt 00:05:52]}
23. Ndf3 {[%clk 00:34:44]} {[%emt 00:03:58]} f6 {[%clk 00:36:51]} {[%emt
00:05:07]} 24. Nc4 {[%clk 00:28:05]} {[%emt 00:07:06]} Bxh2+ {[%clk 00:36:46]}
{[%emt 00:00:48]} 25. Nxh2 {[%clk 00:28:20]} {[%emt 00:00:40]} Nxc4 {[%clk
00:32:20]} {[%emt 00:04:29]} 26. Bxc4 {[%clk 00:27:48]} {[%emt 00:00:47]} Qc6
{[%clk 00:25:05]} {[%emt 00:07:44]} 27. f3 {[%clk 00:27:33]} {[%emt 00:01:04]}
Ng5 {[%clk 00:24:31]} {[%emt 00:01:02]} 28. e5 {[%clk 00:23:00]} {[%emt
00:04:48]} fxe5 {[%clk 00:21:01]} {[%emt 00:04:01]} 29. Qxe5 {[%clk 00:23:02]}
{[%emt 00:00:28]} Rf5 {[%clk 00:17:30]} {[%emt 00:04:37]} 30. Qxf5 {[%clk
00:23:19]} {[%emt 00:00:03]} 1-0

[Event "Weekendtournooi Groningen & PK NOSBO"]
[Site "Groningen, Netherlands"]
[Date "2023.05.18"]
[Round "1.11"]
[White "Aden, Dagmar"]
[Black "Aden, Tammo"]
[Result "1/2-1/2"]
[TimeControl "90min + 30sec/move"]
[WhiteElo "1739"]
[BlackElo "1998"]

1. e4 {[%clk 01:30:50]} {[%emt 00:00:10]} c6 {[%clk 01:30:56]} {[%emt
00:00:42]} 2. d4 {[%clk 01:31:10]} d5 {[%clk 01:31:21]} {[%emt 00:00:15]} 3.
exd5 {[%clk 01:31:31]} cxd5 {[%clk 01:31:46]} 4. c4 {[%clk 01:31:44]} Nf6
{[%clk 01:32:09]} {[%emt 00:00:05]} 5. Nf3 {[%clk 01:30:29]} {[%emt 00:01:41]}
Nc6 {[%clk 01:31:44]} {[%emt 00:01:34]} 6. Nc3 {[%clk 01:27:57]} {[%emt
00:02:22]} Bg4 {[%clk 01:28:36]} {[%emt 00:03:47]} 7. cxd5 {[%clk 01:27:39]}
{[%emt 00:01:04]} Nxd5 {[%clk 01:27:34]} {[%emt 00:01:11]} 8. Be2 {[%clk
01:27:01]} {[%emt 00:01:10]} e6 {[%clk 01:25:52]} {[%emt 00:02:33]} 9. O-O
{[%clk 01:24:33]} {[%emt 00:03:12]} Be7 {[%clk 01:24:12]} {[%emt 00:02:32]} 10.
Nxd5 {[%clk 01:21:19]} {[%emt 00:02:45]} Qxd5 {[%clk 01:22:31]} {[%emt
00:02:37]} 11. Be3 {[%clk 01:20:16]} {[%emt 00:01:06]} O-O {[%clk 01:20:41]}
{[%emt 00:02:23]} 12. a3 {[%clk 01:18:04]} {[%emt 00:02:39]} Rfd8 {[%clk
01:15:41]} {[%emt 00:05:26]} 13. Qa4 {[%clk 01:07:35]} {[%emt 00:11:00]} a6
{[%clk 01:07:24]} {[%emt 00:08:46]} 14. Rfd1 {[%clk 01:03:37]} {[%emt
00:04:30]} Rac8 {[%clk 01:00:30]} {[%emt 00:07:21]} 15. Rd2 {[%clk 01:00:56]}
{[%emt 00:03:14]} Na5 {[%clk 00:51:46]} {[%emt 00:09:18]} 16. Rd3 {[%clk
00:50:18]} {[%emt 00:11:20]} Nc4 {[%clk 00:39:50]} {[%emt 00:12:07]} 17. Qb3
{[%clk 00:48:28]} {[%emt 00:02:43]} Bf6 {[%clk 00:30:18]} {[%emt 00:09:40]} 18.
h3 {[%clk 00:46:33]} {[%emt 00:02:36]} Bf5 {[%clk 00:29:45]} {[%emt 00:00:52]}
19. Rc3 {[%clk 00:45:19]} {[%emt 00:02:22]} Nxe3 {[%clk 00:29:37]} 20. fxe3
{[%clk 00:42:39]} {[%emt 00:03:11]} Qxb3 {[%clk 00:23:32]} {[%emt 00:06:34]} 21.
Rxb3 {[%clk 00:43:00]} {[%emt 00:00:40]} Be4 {[%clk 00:23:44]} {[%emt
00:00:08]} 22. Rc3 {[%clk 00:40:47]} {[%emt 00:02:22]} Rxc3 {[%clk 00:17:31]}
{[%emt 00:06:43]} 23. bxc3 {[%clk 00:41:06]} {[%emt 00:00:38]} Rc8 {[%clk
00:17:29]} {[%emt 00:00:21]} 24. Rc1 {[%clk 00:40:06]} {[%emt 00:01:14]} Be7
{[%clk 00:15:30]} {[%emt 00:02:29]} 25. Nd2 {[%clk 00:36:39]} {[%emt 00:04:02]}
Bg6 {[%clk 00:14:15]} {[%emt 00:01:54]} 26. Nb1 {[%clk 00:31:30]} {[%emt
00:05:25]} b5 {[%clk 00:12:50]} {[%emt 00:02:45]} 27. a4 {[%clk 00:29:13]}
{[%emt 00:02:26]} bxa4 {[%clk 00:10:04]} {[%emt 00:02:48]} 28. Bxa6 {[%clk
00:29:31]} {[%emt 00:00:38]} Rb8 {[%clk 00:08:57]} {[%emt 00:01:12]} 29. Nd2
{[%clk 00:29:14]} {[%emt 00:00:45]} a3 {[%clk 00:08:00]} {[%emt 00:01:32]} 30.
Ra1 {[%clk 00:28:12]} {[%emt 00:01:54]} Rb6 {[%clk 00:07:14]} {[%emt 00:00:51]}
31. Bc4 {[%clk 00:27:03]} {[%emt 00:01:40]} h6 {[%clk 00:04:54]} {[%emt
00:02:49]} 32. Kf2 {[%clk 00:19:23]} {[%emt 00:08:12]} Bc2 {[%clk 00:02:19]}
{[%emt 00:03:02]} 33. Ra2 {[%clk 00:16:34]} {[%emt 00:03:21]} Ba4 {[%clk
00:02:28]} {[%emt 00:00:21]} 34. Bd3 {[%clk 00:15:14]} {[%emt 00:02:19]} Bb3
{[%clk 00:01:01]} {[%emt 00:01:25]} 35. Ra1 {[%clk 00:14:39]} {[%emt 00:01:05]}
Bd5 {[%clk 00:00:59]} {[%emt 00:00:41]} 1/2-1/2

[Event "Weekendtournooi Groningen & PK NOSBO"]
[Site "Groningen, Netherlands"]
[Date "2023.05.19"]
[Round "2.1"]
[White "Maatman, Nick"]
[Black "Hommes, Elmar"]
[Result "1-0"]
[TimeControl "90min + 30sec/move"]
[WhiteTitle "IM"]
[WhiteElo "2348"]
[BlackElo "2050"]

1. d4 {[%clk 01:30:30]} d5 {[%clk 01:30:30]} 2. c4 {[%clk 01:25:32]} {[%emt
14:55:45]} c6 {[%clk 01:31:13]} 3. Nf3 {[%clk 01:25:51]} Nf6 {[%clk 01:31:36]}
{[%emt 00:00:05]} 4. g3 {[%clk 01:26:01]} {[%emt 00:00:04]} Bf5 {[%clk
01:30:55]} {[%emt 00:01:04]} 5. Nc3 {[%clk 01:26:27]} {[%emt 00:00:46]} e6
{[%clk 01:30:50]} {[%emt 00:00:04]} 6. Nh4 {[%clk 01:26:52]} {[%emt 00:00:05]}
Be4 {[%clk 01:30:03]} {[%emt 00:01:46]} 7. f3 {[%clk 01:27:18]} Bg6 {[%clk
01:30:15]} {[%emt 00:00:09]} 8. Qb3 {[%clk 01:27:42]} Qb6 {[%clk 01:29:51]}
{[%emt 00:00:59]} 9. Nxg6 {[%clk 01:27:51]} {[%emt 00:00:09]} hxg6 {[%clk
01:30:00]} {[%emt 00:00:24]} 10. c5 {[%clk 01:28:17]} Qxb3 {[%clk 01:29:52]}
{[%emt 00:00:25]} 11. axb3 {[%clk 01:28:45]} {[%emt 00:00:40]} Nbd7 {[%clk
01:28:46]} {[%emt 00:01:32]} 12. b4 {[%clk 01:28:53]} {[%emt 00:00:15]} a6
{[%clk 01:25:17]} {[%emt 00:03:38]} 13. b5 {[%clk 01:22:52]} {[%emt 00:06:49]}
cxb5 {[%clk 01:25:02]} {[%emt 00:00:21]} 14. Nxb5 {[%clk 01:23:16]} {[%emt
00:00:44]} Rc8 {[%clk 01:18:28]} {[%emt 00:06:26]} 15. Nc3 {[%clk 01:22:11]}
{[%emt 00:01:35]} Be7 {[%clk 01:16:12]} {[%emt 00:02:46]} 16. e3 {[%clk
01:21:25]} {[%emt 00:01:16]} O-O {[%clk 01:15:39]} {[%emt 00:01:03]} 17. b4
{[%clk 01:11:25]} {[%emt 00:10:48]} Rfe8 {[%clk 01:05:18]} {[%emt 00:10:34]} 18.
Be2 {[%clk 01:10:54]} {[%emt 00:01:01]} Nb8 {[%clk 00:59:44]} {[%emt 00:06:11]}
19. Kf2 {[%clk 01:03:31]} {[%emt 00:07:47]} Nfd7 {[%clk 00:56:31]} {[%emt
00:04:03]} 20. Bd2 {[%clk 01:00:21]} {[%emt 00:03:26]} Bf6 {[%clk 00:53:26]}
{[%emt 00:03:29]} 21. Rhd1 {[%clk 00:51:14]} {[%emt 00:09:38]} Kh8 {[%clk
00:41:37]} {[%emt 00:12:17]} 22. Be1 {[%clk 00:50:00]} {[%emt 00:02:09]} Nc6
{[%clk 00:39:02]} {[%emt 00:02:47]} 23. Rab1 {[%clk 00:50:17]} {[%emt
00:00:06]} Ra8 {[%clk 00:34:24]} {[%emt 00:05:34]} 24. b5 {[%clk 00:47:10]}
{[%emt 00:03:12]} axb5 {[%clk 00:34:04]} {[%emt 00:00:49]} 25. Nxb5 {[%clk
00:47:35]} {[%emt 00:00:36]} e5 {[%clk 00:29:30]} {[%emt 00:05:03]} 26. dxe5
{[%clk 00:46:18]} {[%emt 00:01:23]} Rxe5 {[%clk 00:29:15]} {[%emt 00:00:38]} 27.
Nd6 {[%clk 00:33:43]} {[%emt 00:13:05]} Kg8 {[%clk 00:29:33]} {[%emt 00:00:39]}
28. Rxb7 {[%clk 00:32:38]} {[%emt 00:01:58]} Nxc5 {[%clk 00:17:28]} {[%emt
00:11:46]} 29. Rc7 {[%clk 00:32:55]} {[%emt 00:00:44]} Re6 {[%clk 00:15:10]}
{[%emt 00:02:18]} 30. Rxc6 {[%clk 00:33:14]} {[%emt 00:00:44]} Nb7 {[%clk
00:15:28]} {[%emt 00:00:04]} 31. Rc8+ {[%clk 00:32:16]} {[%emt 00:01:27]} Rxc8
{[%clk 00:15:48]} {[%emt 00:00:04]} 32. Nxc8 {[%clk 00:32:44]} Re8 {[%clk
00:12:59]} {[%emt 00:03:03]} 33. Nb6 {[%clk 00:32:42]} {[%emt 00:00:37]} 1-0

[Event "Weekendtournooi Groningen & PK NOSBO"]
[Site "Groningen, Netherlands"]
[Date "2023.05.19"]
[Round "2.2"]
[White "Zuiderweg, Edwin"]
[Black "De Boer, Eelke"]
[Result "0-1"]
[TimeControl "90min + 30sec/move"]
[BlackTitle "FM"]
[WhiteElo "1956"]
[BlackElo "2293"]

1. e4 {[%clk 01:28:23]} {[%emt 00:02:11]} e6 {[%clk 01:30:11]} {[%emt
00:00:59]} 2. d4 {[%clk 01:28:47]} {[%emt 00:00:29]} d5 {[%clk 01:30:34]}
{[%emt 00:00:09]} 3. Nc3 {[%clk 01:29:11]} Bb4 {[%clk 01:30:57]} 4. e5 {[%clk
01:29:32]} {[%emt 00:00:08]} c5 {[%clk 01:31:07]} {[%emt 00:00:29]} 5. Bd2
{[%clk 01:28:23]} {[%emt 00:01:18]} Nh6 {[%clk 01:30:44]} {[%emt 00:00:54]} 6.
Nb5 {[%clk 01:23:50]} {[%emt 00:05:23]} Bxd2+ {[%clk 01:30:41]} {[%emt
00:00:15]} 7. Qxd2 {[%clk 01:24:11]} {[%emt 00:00:10]} O-O {[%clk 01:30:32]}
{[%emt 00:00:55]} 8. c3 {[%clk 01:15:10]} {[%emt 00:09:12]} f6 {[%clk
01:12:30]} {[%emt 00:18:34]} 9. f4 {[%clk 01:07:50]} {[%emt 00:07:49]} fxe5
{[%clk 01:01:47]} {[%emt 00:11:10]} 10. dxe5 {[%clk 01:08:01]} {[%emt
00:00:59]} Nf5 {[%clk 01:01:38]} {[%emt 00:00:09]} 11. Bd3 {[%clk 00:54:25]}
{[%emt 00:13:58]} a6 {[%clk 00:58:56]} {[%emt 00:03:11]} 12. Bxf5 {[%clk
00:54:44]} {[%emt 00:00:40]} axb5 {[%clk 00:59:15]} 13. Bc2 {[%clk 00:53:22]}
{[%emt 00:01:34]} Nc6 {[%clk 00:41:02]} {[%emt 00:18:51]} 14. Nf3 {[%clk
00:52:14]} {[%emt 00:01:33]} Ne7 {[%clk 00:27:11]} {[%emt 00:14:41]} 15. O-O
{[%clk 00:52:00]} {[%emt 00:00:21]} Bd7 {[%clk 00:24:49]} {[%emt 00:02:52]} 16.
Bxh7+ {[%clk 00:41:40]} {[%emt 00:10:56]} Kxh7 {[%clk 00:24:56]} {[%emt
00:00:21]} 17. Ng5+ {[%clk 00:42:04]} {[%emt 00:00:04]} Kg8 {[%clk 00:24:28]}
{[%emt 00:00:56]} 18. Qd3 {[%clk 00:42:20]} {[%emt 00:00:43]} Rf5 {[%clk
00:23:18]} {[%emt 00:01:11]} 19. g4 {[%clk 00:41:52]} {[%emt 00:00:57]} Rxg5
{[%clk 00:23:25]} {[%emt 00:00:24]} 20. fxg5 {[%clk 00:42:19]} {[%emt
00:00:04]} Nc6 {[%clk 00:19:23]} {[%emt 00:04:30]} 21. Qe3 {[%clk 00:38:59]}
{[%emt 00:03:51]} Qe7 {[%clk 00:15:44]} {[%emt 00:04:25]} 22. h4 {[%clk
00:36:57]} {[%emt 00:02:15]} d4 {[%clk 00:09:20]} {[%emt 00:06:55]} 23. Qg3
{[%clk 00:32:35]} {[%emt 00:04:51]} dxc3 {[%clk 00:08:32]} {[%emt 00:01:17]} 24.
bxc3 {[%clk 00:32:39]} {[%emt 00:00:44]} c4 {[%clk 00:08:17]} {[%emt 00:00:28]}
25. Qe3 {[%clk 00:32:57]} {[%emt 00:00:11]} b4 {[%clk 00:07:13]} {[%emt
00:01:35]} 26. h5 {[%clk 00:24:46]} {[%emt 00:09:01]} Ra5 {[%clk 00:05:48]}
{[%emt 00:01:39]} 27. g6 {[%clk 00:24:19]} {[%emt 00:00:53]} Nxe5 {[%clk
00:04:27]} {[%emt 00:01:51]} 28. cxb4 Nxg4 {[%clk 00:04:27]} 29. Qg3 Rg5 {[%clk
00:04:27]} 30. Rf7 Ne5 {[%clk 00:04:27]} 31. Rxe7 Rxg3+ {[%clk 00:04:27]} 32.
Kh2 Rd3 {[%clk 00:04:27]} 33. Rf1 Ng4+ {[%clk 00:04:27]} 34. Kg1 Rg3+ {[%clk
00:04:27]} 35. Kh1 Bc6+ {[%clk 00:04:27]} 0-1

[Event "Weekendtournooi Groningen & PK NOSBO"]
[Site "Groningen, Netherlands"]
[Date "2023.05.19"]
[Round "2.3"]
[White "Basinas, Konstantinos"]
[Black "Keuning, Selwin"]
[Result "1/2-1/2"]
[TimeControl "90min + 30sec/move"]
[WhiteElo "1902"]
[BlackElo "2148"]

1. e4 {[%clk 01:30:54]} c5 {[%clk 01:24:27]} {[%emt 00:06:19]} 2. Nf3 {[%clk
01:30:54]} {[%emt 00:00:33]} e6 {[%clk 01:24:43]} {[%emt 00:00:12]} 3. d4
{[%clk 01:28:33]} {[%emt 00:02:52]} cxd4 {[%clk 01:24:24]} {[%emt 00:00:50]} 4.
Nxd4 {[%clk 01:28:43]} {[%emt 00:00:17]} Nc6 {[%clk 01:24:50]} {[%emt
00:00:29]} 5. Nc3 {[%clk 01:26:48]} {[%emt 00:02:09]} Qc7 {[%clk 01:25:04]}
{[%emt 00:00:09]} 6. g3 {[%clk 01:26:23]} {[%emt 00:00:53]} a6 {[%clk
01:25:25]} {[%emt 00:00:17]} 7. Bg2 {[%clk 01:25:16]} {[%emt 00:01:31]} Nf6
{[%clk 01:25:34]} {[%emt 00:00:20]} 8. O-O {[%clk 01:25:22]} {[%emt 00:00:58]}
Nxd4 {[%clk 01:26:00]} 9. Qxd4 {[%clk 01:25:43]} Bc5 {[%clk 01:26:28]} {[%emt
00:00:10]} 10. Qd3 {[%clk 01:23:55]} {[%emt 00:01:48]} Ng4 {[%clk 01:25:56]}
{[%emt 00:01:01]} 11. Qe2 {[%clk 01:04:57]} {[%emt 00:19:30]} h5 {[%clk
01:26:11]} {[%emt 00:00:16]} 12. Bf4 {[%clk 00:53:34]} {[%emt 00:12:12]} Ne5
{[%clk 01:22:13]} {[%emt 00:04:06]} 13. Kh1 {[%clk 00:38:16]} {[%emt 00:15:48]}
b5 {[%clk 01:11:02]} {[%emt 00:12:06]} 14. Bxe5 {[%clk 00:37:28]} {[%emt
00:01:31]} Qxe5 {[%clk 01:09:40]} {[%emt 00:01:40]} 15. f4 {[%clk 00:37:53]}
Qc7 {[%clk 01:10:03]} 16. e5 {[%clk 00:34:58]} {[%emt 00:03:11]} Bb7 {[%clk
01:04:14]} {[%emt 00:06:27]} 17. Ne4 {[%clk 00:33:23]} {[%emt 00:01:57]} Be7
{[%clk 00:42:36]} {[%emt 00:22:08]} 18. Rac1 {[%clk 00:27:50]} {[%emt
00:06:04]} Rc8 {[%clk 00:35:07]} {[%emt 00:07:58]} 19. Rfd1 {[%clk 00:26:56]}
{[%emt 00:01:33]} h4 {[%clk 00:29:16]} {[%emt 00:06:11]} 20. g4 {[%clk
00:25:02]} {[%emt 00:02:24]} h3 {[%clk 00:22:19]} {[%emt 00:07:27]} 1/2-1/2

[Event "Weekendtournooi Groningen & PK NOSBO"]
[Site "Groningen, Netherlands"]
[Date "2023.05.19"]
[Round "2.4"]
[White "Hummel, Paul"]
[Black "Clemens, Adrian"]
[Result "1-0"]
[TimeControl "90min + 30sec/move"]
[BlackTitle "FM"]
[WhiteElo "2152"]
[BlackElo "2060"]

1. d4 {[%clk 01:30:46]} d5 {[%clk 01:30:13]} {[%emt 00:00:39]} 2. c4 {[%clk
01:30:04]} {[%emt 00:01:35]} e6 {[%clk 01:30:35]} {[%emt 00:00:09]} 3. Nc3
{[%clk 01:30:13]} {[%emt 00:00:04]} c5 {[%clk 01:30:27]} {[%emt 00:00:32]} 4.
e3 {[%clk 01:30:02]} {[%emt 00:00:40]} Nf6 {[%clk 01:29:51]} {[%emt 00:01:07]}
5. Nf3 {[%clk 01:30:13]} {[%emt 00:00:46]} a6 {[%clk 01:29:15]} {[%emt
00:00:39]} 6. cxd5 {[%clk 01:25:51]} {[%emt 00:05:25]} exd5 {[%clk 01:28:26]}
{[%emt 00:01:06]} 7. Bd3 {[%clk 01:26:04]} {[%emt 00:00:31]} Bd6 {[%clk
01:22:46]} {[%emt 00:05:38]} 8. O-O {[%clk 01:25:17]} {[%emt 00:01:35]} O-O
{[%clk 01:23:11]} 9. dxc5 {[%clk 01:19:43]} {[%emt 00:05:50]} Bxc5 {[%clk
01:23:23]} {[%emt 00:00:41]} 10. h3 {[%clk 01:18:58]} {[%emt 00:00:51]} Nc6
{[%clk 01:17:44]} {[%emt 00:06:10]} 11. Ne2 {[%clk 01:19:09]} {[%emt 00:00:47]}
Ne4 {[%clk 01:11:21]} {[%emt 00:06:47]} 12. Ned4 {[%clk 01:17:26]} {[%emt
00:01:50]} Nxd4 {[%clk 01:10:28]} {[%emt 00:01:58]} 13. exd4 {[%clk 01:09:09]}
{[%emt 00:08:13]} Bd6 {[%clk 00:58:02]} {[%emt 00:12:56]} 14. Re1 {[%clk
01:05:07]} {[%emt 00:05:04]} Nf6 {[%clk 00:52:46]} {[%emt 00:05:18]} 15. Bg5
{[%clk 01:00:34]} {[%emt 00:04:59]} h6 {[%clk 00:52:17]} {[%emt 00:01:00]} 16.
Bh4 {[%clk 01:00:48]} {[%emt 00:00:16]} Be6 {[%clk 00:49:45]} {[%emt 00:03:36]}
17. Ne5 {[%clk 00:58:59]} {[%emt 00:01:45]} Be7 {[%clk 00:49:19]} {[%emt
00:00:58]} 18. Ng6 {[%clk 00:54:34]} {[%emt 00:05:24]} fxg6 {[%clk 00:47:27]}
{[%emt 00:02:17]} 19. Rxe6 {[%clk 00:51:56]} {[%emt 00:03:02]} g5 {[%clk
00:46:33]} {[%emt 00:01:07]} 20. Bg3 {[%clk 00:52:11]} {[%emt 00:00:13]} Ne4
{[%clk 00:41:45]} {[%emt 00:05:18]} 21. Bxe4 {[%clk 00:42:06]} {[%emt
00:10:34]} dxe4 {[%clk 00:42:01]} {[%emt 00:00:41]} 22. Qb3 {[%clk 00:41:52]}
{[%emt 00:00:17]} Kh8 {[%clk 00:41:55]} {[%emt 00:00:36]} 23. Rxe4 {[%clk
00:38:59]} {[%emt 00:03:44]} Bf6 {[%clk 00:39:21]} {[%emt 00:02:43]} 24. Rd1
{[%clk 00:36:43]} {[%emt 00:02:46]} Qd7 {[%clk 00:39:08]} {[%emt 00:00:47]} 25.
d5 {[%clk 00:34:05]} {[%emt 00:03:04]} Rad8 {[%clk 00:38:47]} {[%emt 00:00:53]}
26. d6 {[%clk 00:31:38]} {[%emt 00:02:57]} Qf5 {[%clk 00:38:22]} {[%emt
00:00:53]} 27. Qxb7 {[%clk 00:23:05]} {[%emt 00:09:06]} Bxb2 {[%clk 00:36:46]}
{[%emt 00:02:03]} 28. Re2 {[%clk 00:15:46]} {[%emt 00:07:57]} Bf6 {[%clk
00:32:51]} {[%emt 00:04:17]} 29. d7 {[%clk 00:13:06]} {[%emt 00:03:10]} Kh7
{[%clk 00:32:24]} {[%emt 00:00:57]} 30. Qd5 {[%clk 00:11:48]} {[%emt 00:02:10]}
Kg6 {[%clk 00:30:12]} {[%emt 00:02:22]} 31. Qxf5+ {[%clk 00:11:22]} {[%emt
00:00:53]} Kxf5 {[%clk 00:30:33]} {[%emt 00:00:33]} 32. Rd5+ {[%clk 00:11:39]}
{[%emt 00:00:07]} Kg6 {[%clk 00:30:52]} {[%emt 00:00:04]} 33. Bc7 {[%clk
00:11:59]} {[%emt 00:00:04]} Ra8 {[%clk 00:31:08]} {[%emt 00:00:09]} 34. Re6
{[%clk 00:09:10]} {[%emt 00:03:20]} Kf7 {[%clk 00:30:28]} {[%emt 00:01:09]} 35.
Rxf6+ {[%clk 00:09:27]} {[%emt 00:00:20]} gxf6 {[%clk 00:30:39]} {[%emt
00:00:12]} 36. d8=Q {[%clk 00:09:48]} {[%emt 00:00:34]} Rfxd8 {[%clk 00:30:57]}
{[%emt 00:00:09]} 37. Rxd8 {[%clk 00:10:07]} Ra7 {[%clk 00:31:07]} {[%emt
00:00:16]} 38. Ba5 {[%clk 00:09:33]} {[%emt 00:00:57]} 1-0